[Event "*** Titled Tuesday Blitz"]
[Site "Chess.com"]
[Date "2021.02.02"]
[Round "6"]
[White "Zhigalko_Sergei"]
[Black "Boninknights"]
[Result "1-0"]
[WhiteElo "2897"]
[BlackElo "2479"]
[TimeControl "180+1"]
[EndTime "11:07:47 PST"]
[Termination "Zhigalko_Sergei won by resignation"]

1. e4 {[%clk 0:03:00.9]} 1... c5 {[%clk 0:02:58.5]} 2. Nf3 {[%clk 0:03:01.1]}
2... Nc6 {[%clk 0:02:55.5]} 3. c3 {[%clk 0:03:00]} 3... e6 {[%clk 0:02:54.2]} 4.
d4 {[%clk 0:03:00.3]} 4... d5 {[%clk 0:02:54]} 5. e5 {[%clk 0:03:00.8]} 5... Qb6
{[%clk 0:02:53.6]} 6. a3 {[%clk 0:03:00.7]} 6... a5 {[%clk 0:02:52.9]} 7. Bd3
{[%clk 0:02:59.9]} 7... Bd7 {[%clk 0:02:51.1]} 8. Bc2 {[%clk 0:02:51.8]} 8...
Nh6 {[%clk 0:02:45.9]} 9. O-O {[%clk 0:02:48.9]} 9... Be7 {[%clk 0:02:42.3]} 10.
dxc5 {[%clk 0:02:41.4]} 10... Bxc5 {[%clk 0:02:41]} 11. c4 {[%clk 0:02:30]}
11... Ng4 {[%clk 0:02:35.5]} 12. Qe2 {[%clk 0:02:28.1]} 12... dxc4 {[%clk
0:02:25.6]} 13. Nc3 {[%clk 0:02:21.4]} 13... Nxf2 {[%clk 0:02:13.9]} 14. Rxf2
{[%clk 0:02:07.6]} 14... Bxf2+ {[%clk 0:02:10.8]} 15. Qxf2 {[%clk 0:02:08.5]}
15... Qxf2+ {[%clk 0:02:09.2]} 16. Kxf2 {[%clk 0:02:09.4]} 16... Ne7 {[%clk
0:01:58.6]} 17. Be3 {[%clk 0:01:57]} 17... b5 {[%clk 0:01:52]} 18. Bc5 {[%clk
0:01:53]} 18... Ng6 {[%clk 0:01:47]} 19. Bd6 {[%clk 0:01:30.7]} 19... f5 {[%clk
0:01:43.2]} 20. Nd4 {[%clk 0:01:29.8]} 20... Kf7 {[%clk 0:01:31.2]} 21. Ncxb5
{[%clk 0:01:20.9]} 21... a4 {[%clk 0:01:28.7]} 22. Re1 {[%clk 0:00:33.2]} 22...
Ra6 {[%clk 0:01:11.9]} 23. Bb4 {[%clk 0:00:28.3]} 23... Rb8 {[%clk 0:01:08.1]}
24. Nd6+ {[%clk 0:00:26.7]} 24... Kg8 {[%clk 0:01:06.8]} 25. Nxc4 {[%clk
0:00:25.5]} 25... Nf4 {[%clk 0:01:01.4]} 26. Ne3 {[%clk 0:00:20.9]} 26... g5
{[%clk 0:00:54.6]} 27. g3 {[%clk 0:00:17.8]} 27... Nh3+ {[%clk 0:00:53.3]} 28.
Ke2 {[%clk 0:00:16.5]} 28... Bb5+ {[%clk 0:00:50.2]} 29. Kd2 {[%clk 0:00:15.3]}
29... Rd8 {[%clk 0:00:49.1]} 30. Bd6 {[%clk 0:00:12.4]} 30... Kf7 {[%clk
0:00:46.6]} 31. Nxb5 {[%clk 0:00:12.4]} 1-0

[Event "*** Titled Tuesday Blitz"]
[Site "Chess.com"]
[Date "2021.02.02"]
[Round "6"]
[White "GM_LOADING"]
[Black "FlySooHigh"]
[Result "0-1"]
[WhiteElo "2463"]
[BlackElo "2609"]
[TimeControl "180+1"]
[EndTime "11:07:47 PST"]
[Termination "FlySooHigh won on time"]

1. d4 {[%clk 0:02:52]} 1... Nf6 {[%clk 0:02:59.3]} 2. Nf3 {[%clk 0:02:51.6]}
2... c5 {[%clk 0:02:59.4]} 3. d5 {[%clk 0:02:50.9]} 3... b5 {[%clk 0:02:59.1]}
4. Bg5 {[%clk 0:02:48.6]} 4... Qb6 {[%clk 0:02:58.3]} 5. a4 {[%clk 0:02:00.5]}
5... bxa4 {[%clk 0:02:47.7]} 6. Bxf6 {[%clk 0:01:56]} 6... gxf6 {[%clk
0:02:43.6]} 7. Qc1 {[%clk 0:01:53.3]} 7... d6 {[%clk 0:02:38.1]} 8. Nc3 {[%clk
0:01:52.3]} 8... f5 {[%clk 0:02:35.2]} 9. Rxa4 {[%clk 0:01:46.2]} 9... Bg7
{[%clk 0:02:33.5]} 10. e3 {[%clk 0:01:43.5]} 10... Nd7 {[%clk 0:02:22.5]} 11.
Bd3 {[%clk 0:01:13.6]} 11... Rb8 {[%clk 0:02:16]} 12. O-O {[%clk 0:01:03.9]}
12... Qxb2 {[%clk 0:02:05]} 13. Qxb2 {[%clk 0:01:01.7]} 13... Rxb2 {[%clk
0:02:05.9]} 14. Nb5 {[%clk 0:01:00.1]} 14... a6 {[%clk 0:01:42.6]} 15. Nc7+
{[%clk 0:00:55.6]} 15... Kd8 {[%clk 0:01:42.7]} 16. Nxa6 {[%clk 0:00:55.7]}
16... Nb6 {[%clk 0:01:39.6]} 17. Ra5 {[%clk 0:00:39.6]} 17... Nxd5 {[%clk
0:01:18.1]} 18. Ng5 {[%clk 0:00:25.2]} 18... Be6 {[%clk 0:00:58.9]} 19. h3
{[%clk 0:00:02.2]} 19... h6 {[%clk 0:00:49.7]} 20. Nxe6+ {[%clk 0:00:01.2]}
20... fxe6 {[%clk 0:00:50.6]} 21. Bc4 {[%clk 0:00:01.4]} 21... Kd7 {[%clk
0:00:47.2]} 22. Ra4 {[%clk 0:00:01.2]} 22... Nc3 {[%clk 0:00:39.7]} 0-1

[Event "*** Titled Tuesday Blitz"]
[Site "Chess.com"]
[Date "2021.02.02"]
[Round "6"]
[White "shaheus"]
[Black "sorrm8thatscheckm8"]
[Result "0-1"]
[WhiteElo "2403"]
[BlackElo "2567"]
[TimeControl "180+1"]
[EndTime "11:07:51 PST"]
[Termination "sorrm8thatscheckm8 won on time"]

1. e4 {[%clk 0:03:00.9]} 1... c5 {[%clk 0:02:58.7]} 2. Nf3 {[%clk 0:03:00.8]}
2... Nc6 {[%clk 0:02:58.9]} 3. c3 {[%clk 0:03:01.1]} 3... Nf6 {[%clk 0:02:58.5]}
4. e5 {[%clk 0:03:01]} 4... Nd5 {[%clk 0:02:58.7]} 5. d4 {[%clk 0:03:01.3]} 5...
cxd4 {[%clk 0:02:59.6]} 6. cxd4 {[%clk 0:03:01.7]} 6... d6 {[%clk 0:03:00.2]} 7.
Nc3 {[%clk 0:03:01.4]} 7... Nxc3 {[%clk 0:02:55.3]} 8. bxc3 {[%clk 0:03:00.8]}
8... dxe5 {[%clk 0:02:56.2]} 9. d5 {[%clk 0:03:00.2]} 9... Nb8 {[%clk
0:02:55.8]} 10. Nxe5 {[%clk 0:02:58.7]} 10... Nd7 {[%clk 0:02:55.7]} 11. Bb5
{[%clk 0:02:47.5]} 11... a6 {[%clk 0:02:53.6]} 12. Qa4 {[%clk 0:02:33.2]} 12...
axb5 {[%clk 0:02:45.3]} 13. Qxa8 {[%clk 0:02:29.1]} 13... Nxe5 {[%clk
0:02:45.3]} 14. O-O {[%clk 0:02:28.9]} 14... g6 {[%clk 0:02:36.8]} 15. Be3
{[%clk 0:02:22.9]} 15... Bg7 {[%clk 0:02:36.6]} 16. Bb6 {[%clk 0:01:59.8]} 16...
Qd7 {[%clk 0:02:24.3]} 17. a4 {[%clk 0:01:54.6]} 17... O-O {[%clk 0:02:21.6]}
18. axb5 {[%clk 0:01:44.4]} 18... Qxd5 {[%clk 0:02:19.9]} 19. Qa4 {[%clk
0:01:37.8]} 19... Bh3 {[%clk 0:02:02.6]} 20. f3 {[%clk 0:01:29.9]} 20... Bd7
{[%clk 0:01:54.9]} 21. Rab1 {[%clk 0:01:26.1]} 21... Rc8 {[%clk 0:01:48.5]} 22.
Rfd1 {[%clk 0:01:19.7]} 22... Nd3 {[%clk 0:01:44.4]} 23. Bd4 {[%clk 0:00:24.1]}
23... Bxd4+ {[%clk 0:01:32.1]} 24. cxd4 {[%clk 0:00:23.8]} 24... Nf4 {[%clk
0:01:26.8]} 25. Qb3 {[%clk 0:00:17.7]} 25... Qg5 {[%clk 0:01:24.1]} 26. g3
{[%clk 0:00:15.2]} 26... Rc3 {[%clk 0:01:17.9]} 27. Qa2 {[%clk 0:00:10]} 27...
Rxf3 {[%clk 0:01:16.4]} 28. Rf1 {[%clk 0:00:07.7]} 28... Rxg3+ {[%clk
0:01:00.8]} 29. hxg3 {[%clk 0:00:04.9]} 29... Qxg3+ {[%clk 0:00:59.8]} 30. Kh1
{[%clk 0:00:04.4]} 30... Bf5 {[%clk 0:00:59.4]} 0-1

[Event "*** Titled Tuesday Blitz"]
[Site "Chess.com"]
[Date "2021.02.02"]
[Round "6"]
[White "motivated_bishop"]
[Black "Mazanchenko_Dmitry"]
[Result "1-0"]
[WhiteElo "2393"]
[BlackElo "2153"]
[TimeControl "180+1"]
[EndTime "11:07:51 PST"]
[Termination "motivated_bishop won on time"]

1. d4 {[%clk 0:03:00.9]} 1... g6 {[%clk 0:02:59]} 2. e4 {[%clk 0:02:58.5]} 2...
Bg7 {[%clk 0:02:58]} 3. c4 {[%clk 0:02:58.7]} 3... d6 {[%clk 0:02:57.6]} 4. Nc3
{[%clk 0:02:58.9]} 4... Nc6 {[%clk 0:02:57.6]} 5. Be3 {[%clk 0:02:58.3]} 5... e5
{[%clk 0:02:57.1]} 6. d5 {[%clk 0:02:48.6]} 6... Nd4 {[%clk 0:02:56.5]} 7. Nge2
{[%clk 0:02:47.9]} 7... Bg4 {[%clk 0:02:55.4]} 8. f3 {[%clk 0:02:47.8]} 8...
Bxf3 {[%clk 0:02:55]} 9. gxf3 {[%clk 0:02:47.9]} 9... Nxf3+ {[%clk 0:02:55.9]}
10. Kf2 {[%clk 0:02:47.7]} 10... Qf6 {[%clk 0:02:56.8]} 11. Bg2 {[%clk 0:02:35]}
11... Nh4+ {[%clk 0:02:55.6]} 12. Kg1 {[%clk 0:02:33.8]} 12... Bh6 {[%clk
0:02:54.5]} 13. Bxh6 {[%clk 0:02:31.1]} 13... Nxh6 {[%clk 0:02:55.4]} 14. Qd2
{[%clk 0:02:29.1]} 14... Qf3 {[%clk 0:02:22.9]} 15. Ng3 {[%clk 0:02:24]} 15...
Ng4 {[%clk 0:02:16.4]} 16. Qe2 {[%clk 0:02:06.1]} 16... Qf4 {[%clk 0:02:00.6]}
17. Re1 {[%clk 0:01:47.2]} 17... f5 {[%clk 0:01:34.2]} 18. exf5 {[%clk
0:01:45.2]} 18... gxf5 {[%clk 0:01:32.9]} 19. Nf1 {[%clk 0:01:34.8]} 19... Nxg2
{[%clk 0:01:13.7]} 20. Kxg2 {[%clk 0:01:31.5]} 20... Rg8 {[%clk 0:01:08.7]} 21.
Ng3 {[%clk 0:01:31.5]} 21... O-O-O {[%clk 0:00:47.6]} 22. Rhf1 {[%clk
0:01:29.2]} 22... Qh6 {[%clk 0:00:43.7]} 23. Kh1 {[%clk 0:01:29.4]} 23... f4
{[%clk 0:00:39.5]} 24. Nge4 {[%clk 0:01:18.6]} 24... Qh3 {[%clk 0:00:27.2]} 25.
Rf3 {[%clk 0:01:17.9]} 25... Qh5 {[%clk 0:00:20.2]} 26. Rg1 {[%clk 0:01:17.3]}
26... Rg6 {[%clk 0:00:18]} 27. Rff1 {[%clk 0:01:07.5]} 27... Rdg8 {[%clk
0:00:16.9]} 28. c5 {[%clk 0:01:05.7]} 28... Ne3 {[%clk 0:00:15.4]} 29. Qxh5
{[%clk 0:01:03.1]} 29... Nxf1 {[%clk 0:00:14.3]} 30. Rxf1 {[%clk 0:01:02.3]} 1-0

[Event "*** Titled Tuesday Blitz"]
[Site "Chess.com"]
[Date "2021.02.02"]
[Round "6"]
[White "GregShahade"]
[Black "petrkostenko"]
[Result "1-0"]
[WhiteElo "2662"]
[BlackElo "2459"]
[TimeControl "180+1"]
[EndTime "11:07:55 PST"]
[Termination "GregShahade won on time"]

1. e4 {[%clk 0:03:00.9]} 1... e6 {[%clk 0:02:57.6]} 2. d4 {[%clk 0:03:00.6]}
2... d5 {[%clk 0:02:58.4]} 3. Nd2 {[%clk 0:03:01]} 3... c5 {[%clk 0:02:57.7]} 4.
exd5 {[%clk 0:03:01.3]} 4... Qxd5 {[%clk 0:02:57.8]} 5. Ngf3 {[%clk 0:03:00.4]}
5... cxd4 {[%clk 0:02:57.8]} 6. Bc4 {[%clk 0:03:00.2]} 6... Qd6 {[%clk
0:02:58.2]} 7. O-O {[%clk 0:02:58.5]} 7... Nf6 {[%clk 0:02:58.7]} 8. Nb3 {[%clk
0:02:59]} 8... Nc6 {[%clk 0:02:59.1]} 9. Nbxd4 {[%clk 0:02:59.1]} 9... Nxd4
{[%clk 0:02:59.6]} 10. Nxd4 {[%clk 0:02:59.9]} 10... Bd7 {[%clk 0:03:00]} 11. c3
{[%clk 0:02:43.3]} 11... Qc7 {[%clk 0:02:52.6]} 12. Qe2 {[%clk 0:02:43.4]} 12...
a6 {[%clk 0:02:24.7]} 13. g3 {[%clk 0:02:31]} 13... Rc8 {[%clk 0:01:45.9]} 14.
Bb3 {[%clk 0:02:24.4]} 14... Bc5 {[%clk 0:01:44.8]} 15. Bf4 {[%clk 0:02:22.2]}
15... Qb6 {[%clk 0:01:45]} 16. Nf5 {[%clk 0:02:09.2]} 16... O-O {[%clk 0:01:39]}
17. Nxg7 {[%clk 0:02:02.3]} 17... Kxg7 {[%clk 0:01:38.5]} 18. Be5 {[%clk
0:01:51.1]} 18... Be7 {[%clk 0:01:23.1]} 19. Rfd1 {[%clk 0:01:37.2]} 19... Rfd8
{[%clk 0:01:06.6]} 20. Qg4+ {[%clk 0:01:05.5]} 20... Kf8 {[%clk 0:01:06.2]} 21.
Qh4 {[%clk 0:01:04.8]} 21... Ng8 {[%clk 0:00:19.2]} 22. Qxh7 {[%clk 0:01:03.7]}
22... f6 {[%clk 0:00:19.5]} 23. Rd4 {[%clk 0:00:50.9]} 23... Be8 {[%clk
0:00:15.8]} 24. Rg4 {[%clk 0:00:36.1]} 24... Bf7 {[%clk 0:00:15.9]} 25. Bf4
{[%clk 0:00:36.2]} 25... Qc6 {[%clk 0:00:01.3]} 26. Rg7 {[%clk 0:00:35.5]} 1-0

[Event "*** Titled Tuesday Blitz"]
[Site "Chess.com"]
[Date "2021.02.02"]
[Round "6"]
[White "SilviusTiberius"]
[Black "Godzillator"]
[Result "1-0"]
[WhiteElo "2473"]
[BlackElo "2313"]
[TimeControl "180+1"]
[EndTime "11:08:00 PST"]
[Termination "SilviusTiberius won by resignation"]

1. e4 {[%clk 0:03:00.9]} 1... c6 {[%clk 0:03:00]} 2. d4 {[%clk 0:02:57.5]} 2...
d5 {[%clk 0:03:00.9]} 3. exd5 {[%clk 0:02:58.4]} 3... cxd5 {[%clk 0:03:00.9]} 4.
Bd3 {[%clk 0:02:59]} 4... Nc6 {[%clk 0:03:00.5]} 5. c3 {[%clk 0:02:59.5]} 5...
Nf6 {[%clk 0:03:00.6]} 6. Bf4 {[%clk 0:02:59.4]} 6... Bg4 {[%clk 0:03:00.5]} 7.
Qb3 {[%clk 0:02:59]} 7... Qc8 {[%clk 0:03:01]} 8. Nd2 {[%clk 0:02:59.2]} 8... e6
{[%clk 0:03:01.5]} 9. Ngf3 {[%clk 0:02:59.6]} 9... Be7 {[%clk 0:03:01.5]} 10.
O-O {[%clk 0:03:00]} 10... Bh5 {[%clk 0:03:01.8]} 11. Rae1 {[%clk 0:02:57.7]}
11... a6 {[%clk 0:03:01.3]} 12. a3 {[%clk 0:02:43.7]} 12... b5 {[%clk
0:02:55.1]} 13. Qc2 {[%clk 0:02:41]} 13... Bg6 {[%clk 0:02:54.5]} 14. Nb3 {[%clk
0:02:37.8]} 14... Nd7 {[%clk 0:02:48.9]} 15. Bg5 {[%clk 0:02:18.7]} 15... O-O
{[%clk 0:02:39.9]} 16. Bxe7 {[%clk 0:02:16.4]} 16... Nxe7 {[%clk 0:02:39.7]} 17.
Ng5 {[%clk 0:02:13.4]} 17... Bxd3 {[%clk 0:02:30.1]} 18. Qxd3 {[%clk 0:02:13.3]}
18... Nf6 {[%clk 0:02:29.7]} 19. Nc5 {[%clk 0:02:06.5]} 19... h6 {[%clk
0:02:25.9]} 20. Nf3 {[%clk 0:02:06.5]} 20... Nc6 {[%clk 0:02:24.5]} 21. b4
{[%clk 0:01:57.3]} 21... Ne8 {[%clk 0:02:18.3]} 22. Ne5 {[%clk 0:01:51.2]} 22...
Nd6 {[%clk 0:02:18.3]} 23. Ned7 {[%clk 0:01:51.2]} 23... Nc4 {[%clk 0:02:12.5]}
24. Nxf8 {[%clk 0:01:48.4]} 24... Qxf8 {[%clk 0:02:12.5]} 25. a4 {[%clk
0:01:46.8]} 25... bxa4 {[%clk 0:02:05.8]} 26. Nxa4 {[%clk 0:01:45.5]} 26... a5
{[%clk 0:02:05.8]} 27. b5 {[%clk 0:01:44.7]} 27... Na7 {[%clk 0:02:04.5]} 28. b6
{[%clk 0:01:43.8]} 28... Nb5 {[%clk 0:01:55.7]} 29. Rb1 {[%clk 0:01:40.5]} 29...
Nbd6 {[%clk 0:01:54.3]} 30. b7 {[%clk 0:01:37.4]} 30... Rb8 {[%clk 0:01:54.6]}
31. Nc5 {[%clk 0:01:37.7]} 31... Qe7 {[%clk 0:01:53.7]} 32. Qd1 {[%clk
0:01:23.2]} 32... Ne4 {[%clk 0:01:40.9]} 33. Nxe4 {[%clk 0:01:18.7]} 33... dxe4
{[%clk 0:01:40.8]} 34. Qa4 {[%clk 0:01:14.1]} 34... Nd2 {[%clk 0:01:34.1]} 35.
Qxa5 {[%clk 0:01:14]} 35... Nxf1 {[%clk 0:01:30.2]} 36. Kxf1 {[%clk 0:01:14.1]}
36... f5 {[%clk 0:01:24.9]} 37. Qb6 {[%clk 0:01:07.4]} 37... Kh7 {[%clk
0:01:23.8]} 38. c4 {[%clk 0:01:06.9]} 38... Qd7 {[%clk 0:01:22.9]} 39. Qa7
{[%clk 0:00:59.9]} 39... Qc7 {[%clk 0:01:22.2]} 40. g3 {[%clk 0:00:58.5]} 40...
Qxc4+ {[%clk 0:01:19.1]} 41. Kg1 {[%clk 0:00:58.7]} 41... Qc7 {[%clk 0:01:18.9]}
42. Qa6 {[%clk 0:00:55]} 42... Qd7 {[%clk 0:01:16.7]} 43. Qb6 {[%clk 0:00:50.2]}
43... h5 {[%clk 0:01:02.5]} 44. h4 {[%clk 0:00:49.5]} 44... Kg6 {[%clk
0:00:58.5]} 45. Rb5 {[%clk 0:00:49.4]} 45... Kf6 {[%clk 0:00:58.2]} 46. d5
{[%clk 0:00:45.9]} 46... g6 {[%clk 0:00:56.8]} 47. dxe6 {[%clk 0:00:43.7]} 47...
Qxe6 {[%clk 0:00:56.3]} 48. Qc7 {[%clk 0:00:42.8]} 48... Qe8 {[%clk 0:00:53.5]}
49. Rb6+ {[%clk 0:00:40.9]} 1-0

[Event "*** Titled Tuesday Blitz"]
[Site "Chess.com"]
[Date "2021.02.02"]
[Round "6"]
[White "Bastiandash"]
[Black "bogcsab"]
[Result "1-0"]
[WhiteElo "2477"]
[BlackElo "2174"]
[TimeControl "180+1"]
[EndTime "11:08:01 PST"]
[Termination "Bastiandash won on time"]

1. e4 {[%clk 0:03:00.9]} 1... d6 {[%clk 0:02:59.7]} 2. d4 {[%clk 0:02:55.1]}
2... Nf6 {[%clk 0:02:59.8]} 3. Nc3 {[%clk 0:02:55.2]} 3... g6 {[%clk 0:02:57.8]}
4. h3 {[%clk 0:02:42.4]} 4... Bg7 {[%clk 0:02:55.9]} 5. Be3 {[%clk 0:02:43]}
5... O-O {[%clk 0:02:55.3]} 6. Nf3 {[%clk 0:02:41.4]} 6... c6 {[%clk 0:02:55]}
7. Qd2 {[%clk 0:02:41.6]} 7... b5 {[%clk 0:02:52.6]} 8. Bd3 {[%clk 0:02:37.5]}
8... Nbd7 {[%clk 0:02:52.1]} 9. a3 {[%clk 0:02:34.8]} 9... e5 {[%clk 0:02:48.7]}
10. dxe5 {[%clk 0:02:32.3]} 10... Nxe5 {[%clk 0:02:39.9]} 11. Nxe5 {[%clk
0:02:30.2]} 11... dxe5 {[%clk 0:02:40.1]} 12. Rd1 {[%clk 0:02:28.8]} 12... Be6
{[%clk 0:02:32.6]} 13. O-O {[%clk 0:02:19.7]} 13... Qe7 {[%clk 0:02:29]} 14. f3
{[%clk 0:02:00.3]} 14... a5 {[%clk 0:02:23.8]} 15. Qf2 {[%clk 0:01:43.1]} 15...
Nd7 {[%clk 0:02:19]} 16. Rde1 {[%clk 0:01:18.6]} 16... b4 {[%clk 0:02:07.8]} 17.
Nb1 {[%clk 0:01:18.9]} 17... c5 {[%clk 0:01:45.6]} 18. Nd2 {[%clk 0:01:16.6]}
18... bxa3 {[%clk 0:01:28.6]} 19. bxa3 {[%clk 0:01:17.5]} 19... Rab8 {[%clk
0:01:27.4]} 20. Nc4 {[%clk 0:01:14.2]} 20... Rfc8 {[%clk 0:01:04.6]} 21. Kh1
{[%clk 0:01:03.5]} 21... Bxc4 {[%clk 0:00:45.6]} 22. Bxc4 {[%clk 0:01:02.6]}
22... Nb6 {[%clk 0:00:46]} 23. Bb5 {[%clk 0:01:00.9]} 23... Bf8 {[%clk
0:00:39.6]} 24. a4 {[%clk 0:00:55.3]} 24... Qc7 {[%clk 0:00:35.2]} 25. f4 {[%clk
0:00:55]} 25... exf4 {[%clk 0:00:19.9]} 26. Bxf4 {[%clk 0:00:55.9]} 26... Bd6
{[%clk 0:00:07.8]} 27. e5 {[%clk 0:00:48.3]} 27... Be7 {[%clk 0:00:03.4]} 28. e6
{[%clk 0:00:48]} 28... Bd6 {[%clk 0:00:03.7]} 29. Bxd6 {[%clk 0:00:45.1]} 29...
Qxd6 {[%clk 0:00:03.5]} 30. Qxf7+ {[%clk 0:00:45.7]} 30... Kh8 {[%clk
0:00:01.2]} 31. e7 {[%clk 0:00:46.1]} 1-0

[Event "*** Titled Tuesday Blitz"]
[Site "Chess.com"]
[Date "2021.02.02"]
[Round "6"]
[White "vugarrasulov"]
[Black "LawrenceTrent"]
[Result "1-0"]
[WhiteElo "2745"]
[BlackElo "2578"]
[TimeControl "180+1"]
[EndTime "11:08:04 PST"]
[Termination "vugarrasulov won on time"]

1. g4 {[%clk 0:03:00.9]} 1... d5 {[%clk 0:02:59.5]} 2. Bg2 {[%clk 0:03:01.2]}
2... Bxg4 {[%clk 0:02:59.6]} 3. c4 {[%clk 0:03:00.7]} 3... d4 {[%clk 0:03:00.2]}
4. Bxb7 {[%clk 0:02:58.7]} 4... Nd7 {[%clk 0:03:00.8]} 5. d3 {[%clk 0:02:54.7]}
5... Rb8 {[%clk 0:02:57.9]} 6. Bg2 {[%clk 0:02:55.1]} 6... e5 {[%clk 0:02:57.2]}
7. Nf3 {[%clk 0:02:55.5]} 7... Ngf6 {[%clk 0:02:57.1]} 8. Qa4 {[%clk 0:02:49.2]}
8... Bb4+ {[%clk 0:02:53.4]} 9. Bd2 {[%clk 0:02:48.5]} 9... a5 {[%clk
0:02:52.2]} 10. Nxe5 {[%clk 0:02:43.3]} 10... O-O {[%clk 0:02:49.6]} 11. Nxg4
{[%clk 0:02:40.6]} 11... Nxg4 {[%clk 0:02:47]} 12. h3 {[%clk 0:02:40.5]} 12...
Nc5 {[%clk 0:02:20.1]} 13. Qc2 {[%clk 0:02:38.3]} 13... Ne5 {[%clk 0:01:52.5]}
14. a3 {[%clk 0:02:34]} 14... Bxd2+ {[%clk 0:01:51.9]} 15. Nxd2 {[%clk
0:02:34.9]} 15... a4 {[%clk 0:01:51.8]} 16. O-O-O {[%clk 0:02:24.9]} 16... Qe7
{[%clk 0:01:48.6]} 17. Kb1 {[%clk 0:02:19.2]} 17... Rb6 {[%clk 0:01:33.8]} 18.
Ka2 {[%clk 0:02:19.5]} 18... Rfb8 {[%clk 0:01:32.6]} 19. Rb1 {[%clk 0:02:20.1]}
19... f5 {[%clk 0:01:07.3]} 20. Rhe1 {[%clk 0:02:07.9]} 20... Kh8 {[%clk
0:01:03.6]} 21. Bf1 {[%clk 0:02:07.9]} 21... Qd6 {[%clk 0:01:00.2]} 22. e3
{[%clk 0:02:07.2]} 22... dxe3 {[%clk 0:00:58.6]} 23. Rxe3 {[%clk 0:02:08.1]}
23... Ne6 {[%clk 0:00:57.9]} 24. Qc3 {[%clk 0:02:05.1]} 24... Nd4 {[%clk
0:00:55.1]} 25. f4 {[%clk 0:02:00.3]} 25... Nd7 {[%clk 0:00:50]} 26. Bg2 {[%clk
0:01:58]} 26... c6 {[%clk 0:00:41.9]} 27. Nf3 {[%clk 0:01:49.5]} 27... c5 {[%clk
0:00:27.3]} 28. Ng5 {[%clk 0:01:41]} 28... Qf6 {[%clk 0:00:25.3]} 29. Bd5 {[%clk
0:01:40.2]} 29... g6 {[%clk 0:00:22.7]} 30. Nf7+ {[%clk 0:01:39.1]} 30... Kg7
{[%clk 0:00:22.5]} 31. Ne5 {[%clk 0:01:40]} 31... Qd6 {[%clk 0:00:16]} 32. Nxd7
{[%clk 0:01:37]} 32... Qxd7 {[%clk 0:00:16.1]} 33. Qe1 {[%clk 0:01:37.7]} 33...
R6b7 {[%clk 0:00:05]} 34. Bxb7 {[%clk 0:01:36.8]} 34... Rxb7 {[%clk 0:00:05.9]}
35. Re5 {[%clk 0:01:35.9]} 35... Qc7 {[%clk 0:00:04.4]} 36. Qe3 {[%clk
0:01:30.8]} 36... Kh6 {[%clk 0:00:02.1]} 37. Qg3 {[%clk 0:01:29.7]} 37... Qb6
{[%clk 0:00:02.2]} 38. Qg5+ {[%clk 0:01:30.1]} 38... Kg7 {[%clk 0:00:02.4]} 39.
Re7+ {[%clk 0:01:30.8]} 39... Rxe7 {[%clk 0:00:03]} 40. Qxe7+ {[%clk 0:01:31]}
40... Kg8 {[%clk 0:00:03.6]} 41. Qe8+ {[%clk 0:01:27.4]} 41... Kg7 {[%clk
0:00:03.7]} 42. Qxa4 {[%clk 0:01:28.3]} 42... Qb8 {[%clk 0:00:02.5]} 43. Re1
{[%clk 0:01:27.1]} 43... Qxf4 {[%clk 0:00:02.6]} 44. Qa7+ {[%clk 0:01:27.4]}
44... Kh6 {[%clk 0:00:02.7]} 45. Qxc5 {[%clk 0:01:28]} 45... Qf2 {[%clk
0:00:02.8]} 46. Re8 {[%clk 0:01:24.2]} 46... f4 {[%clk 0:00:02.1]} 47. Re4
{[%clk 0:01:23.8]} 1-0

[Event "*** Titled Tuesday Blitz"]
[Site "Chess.com"]
[Date "2021.02.02"]
[Round "6"]
[White "amatatanav"]
[Black "dozer80"]
[Result "0-1"]
[WhiteElo "2450"]
[BlackElo "2600"]
[TimeControl "180+1"]
[EndTime "11:08:04 PST"]
[Termination "dozer80 won on time"]

1. e4 {[%clk 0:03:00.9]} 1... c6 {[%clk 0:03:00.4]} 2. Nc3 {[%clk 0:03:00.1]}
2... d5 {[%clk 0:03:00.5]} 3. Nf3 {[%clk 0:03:00.9]} 3... Bg4 {[%clk 0:03:00.1]}
4. d4 {[%clk 0:03:00.2]} 4... a6 {[%clk 0:02:58.6]} 5. Bd3 {[%clk 0:02:58.1]}
5... e6 {[%clk 0:02:55.7]} 6. O-O {[%clk 0:02:57.7]} 6... Bd6 {[%clk 0:02:53.9]}
7. Re1 {[%clk 0:02:57]} 7... Ne7 {[%clk 0:02:53]} 8. Bg5 {[%clk 0:02:29.5]} 8...
O-O {[%clk 0:02:41.3]} 9. Qe2 {[%clk 0:02:15.3]} 9... Qe8 {[%clk 0:02:00.9]} 10.
Bxe7 {[%clk 0:02:00.3]} 10... Bxe7 {[%clk 0:01:52.9]} 11. exd5 {[%clk 0:01:59]}
11... Bxf3 {[%clk 0:01:51.7]} 12. gxf3 {[%clk 0:01:20.6]} 12... cxd5 {[%clk
0:01:50.2]} 13. Nxd5 {[%clk 0:01:18.7]} 13... Nc6 {[%clk 0:01:29.4]} 14. Nxe7+
{[%clk 0:01:10.4]} 14... Qxe7 {[%clk 0:01:28.9]} 15. Qe4 {[%clk 0:01:04.7]}
15... g6 {[%clk 0:01:28.3]} 16. c3 {[%clk 0:00:45.4]} 16... Rad8 {[%clk
0:01:27]} 17. Bc4 {[%clk 0:00:27.9]} 17... Qd6 {[%clk 0:01:18.8]} 18. Kh1 {[%clk
0:00:26.8]} 18... Ne7 {[%clk 0:01:19]} 19. Qe5 {[%clk 0:00:25.9]} 19... Qd7
{[%clk 0:01:17.1]} 20. Qf6 {[%clk 0:00:21.2]} 20... Nf5 {[%clk 0:00:47.6]} 21.
Bb3 {[%clk 0:00:05.7]} 21... Qc6 {[%clk 0:00:45.7]} 22. Re4 {[%clk 0:00:05.3]}
22... a5 {[%clk 0:00:37.7]} 23. Rae1 {[%clk 0:00:03.2]} 23... a4 {[%clk
0:00:37.4]} 24. Bc2 {[%clk 0:00:03.3]} 24... Nd6 {[%clk 0:00:36.4]} 25. Re5
{[%clk 0:00:03.1]} 25... b6 {[%clk 0:00:34.3]} 26. Rh5 {[%clk 0:00:01.8]} 26...
Nf5 {[%clk 0:00:32.4]} 0-1